[Event "17th Asian Continental-ch Women 2018"]
[Site "Makati City"]
[Date "2018.12.12"]
[Round "3.5"]
[White "Nandhidhaa, P V"]
[Black "Aulia, Medina Warda"]
[Result "1/2-1/2"]
[ECO "A00"]
[WhiteElo "2267"]
[BlackElo "2366"]
[PlyCount "126"]
[EventDate "2018.12.07"]
[EventType "swiss"]
[EventCountry "PHI"]
[TimeControl "40/5400+30:1800+30"]

1. e4 e6 2. d4 d5 3. Nd2 Nc6 4. Ngf3 Nf6 5. e5 Nd7 6. Bd3 f6 7. exf6 Qxf6 8. Nf1 e5 9. Ne3 Nb6 10. dxe5 Nxe5 11. Nxe5 Qxe5 12. O-O Bd6 13. f4 Qf6 14. Ng4 Bxg4 15. Qxg4 O-O 16. Be3 Rae8 17. Qh3 h6 18. c3 Qe6 19. Qxe6+ Rxe6 20. Bxb6 axb6 21. g3 Rfe8 22. Rad1 c6 23. f5 Re3 24. f6 gxf6 25. Rxf6 R8e6 26. Rxe6 Rxe6 27. c4 Kg7 28. cxd5 cxd5 29. Kg2 Bc5 30. Rd2 Re1 31. Bf1 Rb1 32. Be2 Bb4 33. Rxd5 Rxb2 34. Kf3 Rxa2 35. Rd7+ Kf6 36. Rxb7 Bc5 37. Rh7 Ra3+ 38. Kf4 Be3+ 39. Ke4 Bc1 40. Bc4 Re3+ 41. Kd4 Re1 42. Rf7+ Kg6 43. Rc7 Be3+ 44. Kd5 Bg1 45. Bd3+ Kh5 46. Rg7 Bxh2 47. Bf5 Bxg3 48. Rxg3 b5 49. Rb3 Kg5 50. Bd3 h5 51. Rxb5 h4 52. Kd4+ Kg4 53. Bf5+ Kf4 54. Bd3 h3 55. Rh5 Kg3 56. Be4 Kf4 57. Rh4+ Kg3 58. Rh8 h2 59. Rg8+ Kf4 60. Rf8+ Kg3 61. Rh8 Rxe4+ 62. Kxe4 Kg2 63. Rg8+ Kf2 1/2-1/2

[Event "17th Asian Continental-ch Women 2018"]
[Site "Makati City"]
[Date "2018.12.12"]
[Round "3.6"]
[White "Gu, Tianlu"]
[Black "Vo, Thi Kim Phung"]
[Result "0-1"]
[ECO "A00"]
[WhiteElo "2231"]
[BlackElo "2352"]
[PlyCount "144"]
[EventDate "2018.12.07"]
[EventType "swiss"]
[EventCountry "PHI"]
[TimeControl "40/5400+30:1800+30"]

1. e4 e6 2. d4 d5 3. Nd2 c5 4. Ngf3 Nf6 5. exd5 exd5 6. dxc5 Bxc5 7. Bb5+ Bd7 8. Bxd7+ Nbxd7 9. O-O O-O 10. Nb3 Be7 11. h3 Qc7 12. c3 Rfe8 13. Nfd4 Bf8 14. Nf5 Ne5 15. Nbd4 Qd7 16. Bf4 Ng6 17. Bh2 a6 18. a4 Bc5 19. Qb3 Rac8 20. Rfd1 Re4 21. Qc2 h6 22. Ng3 Re7 23. Ngf5 Re4 24. Ng3 Ree8 25. Qf5 Qd8 26. Nh5 Nxh5 27. Qxh5 Qb6 28. b4 Bxd4 29. Rxd4 Rxc3 30. Qxd5 Ra3 31. Rc1 Rxa4 32. Bd6 Rd8 33. Rcd1 Qc6 34. Qb3 b5 35. Qg3 Re8 36. h4 Ne7 37. Qf4 Qd7 38. Bc5 Ng6 39. Qg3 Qf5 40. Rd5 Qf4 41. Qc3 Qxh4 42. g3 Qe4 43. R5d3 Qg4 44. Rd8 Rxd8 45. Rxd8+ Kh7 46. Rd4 Qe6 47. Rd8 Qg4 48. Rd4 Qf5 49. Kg2 Ra2 50. Qe3 Ra1 51. Qd3 Qh5 52. Rh4 Qd1 53. Qf5 Qb1 54. Qxb1 Rxb1 55. Rd4 Ne5 56. Rd6 Ra1 57. f4 Ng4 58. Bd4 Ra2+ 59. Kf3 h5 60. Rd5 Kh6 61. Rd6+ f6 62. Rd8 Kg6 63. Bc5 Ra3+ 64. Ke4 Nh6 65. Rd3 Rxd3 66. Kxd3 Nf5 67. Bf2 Kf7 68. Ke4 Ke6 69. Be1 g6 70. Bf2 Ne7 71. Bc5 f5+ 72. Kd3 Nc6 0-1

[Event "17th Asian Continental-ch Women 2018"]
[Site "Makati City"]
[Date "2018.12.12"]
[Round "3.7"]
[White "Wang, Jue"]
[Black "Bach, Ngoc Thuy Duong"]
[Result "0-1"]
[ECO "A00"]
[WhiteElo "2367"]
[BlackElo "2131"]
[PlyCount "144"]
[EventDate "2018.12.07"]
[EventType "swiss"]
[EventCountry "PHI"]
[TimeControl "40/5400+30:1800+30"]

1. e4 c5 2. Nf3 d6 3. d4 cxd4 4. Nxd4 Nf6 5. Nc3 a6 6. h4 e6 7. g4 d5 8. e5 Nfd7 9. f4 Nc6 10. Nce2 Qc7 11. Be3 Na5 12. b3 h5 13. gxh5 Rxh5 14. Ng3 Rh8 15. Qd2 Nc6 16. Bg2 Ndb8 17. Nge2 Bd7 18. Nf3 Ne7 19. Ned4 Nbc6 20. c3 Nxd4 21. Nxd4 Rc8 22. Rc1 Nc6 23. Ne2 Qd8 24. h5 Be7 25. Bf3 b5 26. b4 f6 27. h6 Rxh6 28. Rxh6 gxh6 29. Bh5+ Kf8 30. f5 fxe5 31. Bxh6+ Kg8 32. Nf4 Bh4+ 33. Kf1 Qf6 34. Qg2+ Kh7 35. Bg7 Qxg7 36. Bg6+ Kg8 37. Nh5 Qh6 38. Rc2 Kf8 39. Qg4 Qg5 40. Qxg5 Bxg5 41. Rg2 exf5 42. Rxg5 Ke7 43. Bxf5 Rf8 44. Ng3 Bxf5 45. Rxf5 Rxf5+ 46. Nxf5+ Kf6 47. Nd6 d4 48. a3 Ke6 49. Ne4 Kd5 50. Nf6+ Kc4 51. cxd4 exd4 52. Nd7 Kb3 53. Nc5+ Kxa3 54. Nxa6 Nxb4 55. Nc7 Ka4 56. Ke2 Nc6 57. Kd3 b4 58. Kc2 Ka3 59. Kb1 Kb3 60. Nd5 Kc4 61. Nf4 Ne5 62. Ng2 b3 63. Nf4 Nd3 64. Ne2 Nc5 65. Ng3 Na4 66. Nf5 d3 67. Nd6+ Kd4 68. Nf5+ Kc3 69. Ne3 d2 70. Ka1 Kd3 71. Nd1 Ke2 72. Nb2 Nxb2 0-1

[Event "17th Asian Continental-ch Women 2018"]
[Site "Makati City"]
[Date "2018.12.12"]
[Round "3.8"]
[White "Gong, Qianyun"]
[Black "Galas, Bernadette"]
[Result "1-0"]
[ECO "A00"]
[WhiteElo "2312"]
[BlackElo "2100"]
[PlyCount "61"]
[EventDate "2018.12.07"]
[EventType "swiss"]
[EventCountry "PHI"]
[TimeControl "40/5400+30:1800+30"]

1. d4 Nf6 2. Nf3 b6 3. Bf4 Bb7 4. e3 e6 5. Bd3 Be7 6. h3 d6 7. Nbd2 c5 8. c3 O-O 9. Qe2 Nc6 10. O-O h6 11. Rad1 d5 12. Ne5 Bd6 13. Bg3 Qc7 14. f4 Rad8 15. Qf3 Na5 16. Bb1 Nc4 17. Ndxc4 dxc4 18. e4 cxd4 19. cxd4 b5 20. Kh1 Qc8 21. Bh4 Be7 22. Ng4 Rd7 23. Nxf6+ Bxf6 24. Bxf6 gxf6 25. Qh5 Kh7 26. d5 c3 27. bxc3 Qxc3 28. e5+ f5 29. Bxf5+ exf5 30. Qxf5+ Kg8 31. Rf3 1-0

[Event "17th Asian Continental-ch Women 2018"]
[Site "Makati City"]
[Date "2018.12.12"]
[Round "3.9"]
[White "Mendoza, Shania Mae"]
[Black "Nguyen, Thi Thanh An"]
[Result "0-1"]
[ECO "A00"]
[WhiteElo "2165"]
[BlackElo "2262"]
[PlyCount "82"]
[EventDate "2018.12.07"]
[EventType "swiss"]
[EventCountry "PHI"]
[TimeControl "40/5400+30:1800+30"]

1. c4 g6 2. g3 Bg7 3. Bg2 Nf6 4. Nc3 O-O 5. Nf3 d6 6. d3 Nc6 7. O-O a6 8. Rb1 Bg4 9. b4 Qc8 10. a4 Bh3 11. b5 Bxg2 12. Kxg2 Nd8 13. Qb3 Ne6 14. Bb2 c6 15. Rfc1 h5 16. e3 Nc5 17. Qc2 Qd7 18. d4 Ne6 19. e4 Nf4+ 20. Kf1 Qh3+ 21. Ke1 Qg2 22. Nd2 Ng4 23. Nd1 Nh3 24. Nf1 Ng5 25. Qd3 Nxh2 26. Nxh2 Qxh2 27. Ke2 f5 28. e5 dxe5 29. dxe5 Rad8 30. Qb3 f4 31. c5+ Kh7 32. Rc4 Ne6 33. Qf3 axb5 34. axb5 Bh6 35. Bc1 Ng5 36. Qxf4 Rxf4 37. Bxf4 Qh1 38. Bxg5 Bxg5 39. f4 Qd5 40. Rbc1 Qd2+ 41. Kf1 Rd3 0-1

[Event "17th Asian Continental-ch Women 2018"]
[Site "Makati City"]
[Date "2018.12.12"]
[Round "3.10"]
[White "Mordido, Kylen Joy"]
[Black "Ning, Kaiyu"]
[Result "0-1"]
[ECO "A00"]
[WhiteElo "2045"]
[BlackElo "2247"]
[PlyCount "72"]
[EventDate "2018.12.07"]
[EventType "swiss"]
[EventCountry "PHI"]
[TimeControl "40/5400+30:1800+30"]

1. c4 e6 2. Nc3 d5 3. d4 a6 4. cxd5 exd5 5. Nf3 Nf6 6. g3 Bd6 7. Bg2 O-O 8. O-O c6 9. b3 Re8 10. Bb2 Bf5 11. Rc1 h6 12. Nh4 Bh7 13. Bh3 Nbd7 14. Nf5 Bf8 15. Na4 Ne4 16. Ne3 Ndf6 17. Nc5 Qe7 18. Ng4 Ng5 19. Nxf6+ Qxf6 20. Bg2 Bxc5 21. Rxc5 Bf5 22. e3 Bh3 23. Bxh3 Nxh3+ 24. Kg2 Ng5 25. h4 Ne4 26. Rc2 Nd6 27. Qf3 Qg6 28. Rfc1 Nf5 29. Kh2 Re4 30. Kh3 Rae8 31. h5 Qg5 32. Kh2 Rg4 33. Kg1 Nxg3 34. fxg3 Rxe3 35. Qh1 Rexg3+ 36. Kf1 Rg1+ 0-1

[Event "17th Asian Continental-ch Women 2018"]
[Site "Makati City"]
[Date "2018.12.12"]
[Round "3.11"]
[White "Citra, Dewi Ardhiani Anast"]
[Black "Anisa, Aay Aisyah"]
[Result "1-0"]
[ECO "A00"]
[WhiteElo "2215"]
[BlackElo "1985"]
[PlyCount "73"]
[EventDate "2018.12.07"]
[EventType "swiss"]
[EventCountry "PHI"]
[TimeControl "40/5400+30:1800+30"]

1. d4 Nf6 2. Bf4 e6 3. e3 d5 4. Nd2 b6 5. c3 Be7 6. Bd3 Bb7 7. Ngf3 Nbd7 8. Ne5 a6 9. Qf3 c5 10. Rd1 b5 11. O-O O-O 12. Qh3 Re8 13. Ndf3 h6 14. Bb1 Bf8 15. Bg5 Qc7 16. Bf4 Qc8 17. Nxd7 Nxd7 18. g4 Qc6 19. g5 e5 20. Nxe5 Nxe5 21. Bxe5 Rxe5 22. dxe5 d4 23. e4 Re8 24. Qg3 hxg5 25. cxd4 cxd4 26. Rxd4 Bc5 27. Rd2 Re6 28. Rd8+ Kh7 29. Qh3+ Rh6 30. Qf5+ Qg6 31. Qxg6+ Rxg6 32. Rd7 Bc6 33. Rxf7 Bd4 34. Re7 Bxb2 35. Rd1 Ba3 36. Rc7 Kh6 37. Rd3 1-0

[Event "17th Asian Continental-ch Women 2018"]
[Site "Makati City"]
[Date "2018.12.12"]
[Round "3.12"]
[White "Doroy Allaney Jia G"]
[Black "Li, Yunshan"]
[Result "1/2-1/2"]
[ECO "A00"]
[WhiteElo "1972"]
[BlackElo "2196"]
[PlyCount "98"]
[EventDate "2018.12.07"]
[EventType "swiss"]
[EventCountry "PHI"]
[TimeControl "40/5400+30:1800+30"]

1. c4 e5 2. g3 c6 3. Bg2 Nf6 4. d4 e4 5. Nh3 Bb4+ 6. Bd2 Bxd2+ 7. Qxd2 d5 8. cxd5 cxd5 9. O-O O-O 10. Nc3 Bf5 11. f3 exf3 12. exf3 Nc6 13. g4 Be6 14. Nf4 Qd6 15. Rfe1 a6 16. Re2 Ne8 17. Na4 Nc7 18. Rae1 Rae8 19. Nh5 f6 20. Nc5 b6 21. Nb3 a5 22. a4 Bf7 23. Ng3 Re6 24. f4 Rfe8 25. f5 Rxe2 26. Rxe2 Rxe2 27. Nxe2 Be8 28. Nbc1 Qb4 29. Qe3 Kf8 30. Qg3 Qe7 31. Kf2 b5 32. axb5 Nxb5 33. Qe3 Qd6 34. Nf4 Bf7 35. Nce2 g5 36. fxg6 hxg6 37. Qd3 Nbxd4 38. Nxg6+ Bxg6 39. Qxg6 Nxe2 40. Qh6+ Ke7 41. Kxe2 Nd4+ 42. Kd1 Qe6 43. Qg7+ Ke8 44. Bf1 Qe4 45. Qg8+ Ke7 46. Qg7+ Ke8 47. Qg8+ Ke7 48. Qg7+ Ke8 49. Qg8+ Ke7 1/2-1/2

[Event "17th Asian Continental-ch Women 2018"]
[Site "Makati City"]
[Date "2018.12.12"]
[Round "3.13"]
[White "Nithyalakshmi, Sivanesan"]
[Black "Makhija, Aashna"]
[Result "1/2-1/2"]
[ECO "A00"]
[WhiteElo "1942"]
[BlackElo "2181"]
[PlyCount "81"]
[EventDate "2018.12.07"]
[EventType "swiss"]
[EventCountry "PHI"]
[TimeControl "40/5400+30:1800+30"]

1. d4 Nf6 2. Bg5 d5 3. e3 e6 4. Nd2 Be7 5. Bd3 O-O 6. f4 b6 7. Ngf3 Nbd7 8. O-O Bb7 9. Bxf6 Nxf6 10. Ne5 Ne4 11. c3 f6 12. Nef3 c5 13. Qc2 f5 14. Ne5 Bd6 15. Ndf3 Qe7 16. Qe2 Rac8 17. a4 Bc6 18. Bb5 Be8 19. Bxe8 Rfxe8 20. Qb5 Bxe5 21. Nxe5 Nd6 22. Qe2 a5 23. Kh1 c4 24. g4 fxg4 25. Qxg4 Rc7 26. Rf3 Qf6 27. Rg1 Qf5 28. Qg2 Rf8 29. h3 Kh8 30. Kh2 Ne4 31. h4 Rf6 32. Rh3 Rh6 33. Ng4 Rh5 34. Qf3 Nd2 35. Qe2 Ne4 36. Qf3 Nd2 37. Qe2 Ne4 38. Ne5 Rh6 39. Ng4 Rh5 40. Ne5 Rh6 41. Ng4 1/2-1/2

[Event "17th Asian Continental-ch Women 2018"]
[Site "Makati City"]
[Date "2018.12.12"]
[Round "3.14"]
[White "Li, Xueyi"]
[Black "Karenza, Dita"]
[Result "1-0"]
[ECO "A00"]
[WhiteElo "2187"]
[BlackElo "1944"]
[PlyCount "83"]
[EventDate "2018.12.07"]
[EventType "swiss"]
[EventCountry "PHI"]
[TimeControl "40/5400+30:1800+30"]

1. d4 d5 2. c4 e6 3. Nf3 Nf6 4. g3 c6 5. Bg2 dxc4 6. Ne5 Bb4+ 7. Nc3 Nd5 8. Bd2 Nb6 9. e3 N8d7 10. f4 Nxe5 11. fxe5 Nd5 12. O-O Nxc3 13. bxc3 Be7 14. Qe2 h5 15. h3 Qc7 16. Qxc4 Bd7 17. e4 g5 18. Be3 Rh7 19. Qd3 c5 20. Rab1 b5 21. Rfd1 Rc8 22. Rbc1 a5 23. Qd2 g4 24. h4 c4 25. Bg5 Ba3 26. Rb1 b4 27. Kh2 Ba4 28. Rf1 bxc3 29. Qxc3 Bb4 30. Rxb4 axb4 31. Qxb4 Bc2 32. d5 Rb8 33. Qa3 Kd7 34. Rf2 Bd3 35. Qe7+ Kc8 36. Qe8+ Kb7 37. Rb2+ Ka8 38. Qa4+ Qa7 39. Qc6+ Rb7 40. Be3 c3 41. Rb3 Bc4 42. Qxc4 1-0

[Event "17th Asian Continental-ch Women 2018"]
[Site "Makati City"]
[Date "2018.12.12"]
[Round "3.15"]
[White "Mejia, Cherry Ann"]
[Black "Frayna, Janelle Mae"]
[Result "1/2-1/2"]
[ECO "A00"]
[WhiteElo "1980"]
[BlackElo "2228"]
[PlyCount "42"]
[EventDate "2018.12.07"]
[EventType "swiss"]
[EventCountry "PHI"]
[TimeControl "40/5400+30:1800+30"]

1. f4 d5 2. b3 Nf6 3. Bb2 e6 4. Nf3 c5 5. e3 Be7 6. Bb5+ Nbd7 7. O-O a6 8. Bxd7+ Bxd7 9. d3 Bc6 10. Nbd2 O-O 11. Ne5 Rc8 12. Qe2 b5 13. Nxc6 Rxc6 14. Nf3 Rc8 15. Ne5 d4 16. e4 Bd6 17. Ng4 Nxg4 18. Qxg4 f5 19. Qf3 Qc7 20. g3 Qc6 21. Rae1 Rce8 1/2-1/2

[Event "17th Asian Continental-ch Women 2018"]
[Site "Makati City"]
[Date "2018.12.12"]
[Round "3.16"]
[White "San Diego, Marie Antoinette"]
[Black "Zhang, Xiao"]
[Result "1/2-1/2"]
[ECO "A00"]
[WhiteElo "2111"]
[BlackElo "2017"]
[PlyCount "75"]
[EventDate "2018.12.07"]
[EventType "swiss"]
[EventCountry "PHI"]
[TimeControl "40/5400+30:1800+30"]

1. d4 d5 2. Bf4 c5 3. e3 Nc6 4. c3 Nf6 5. Nd2 Bf5 6. Qb3 Qd7 7. Ngf3 a6 8. Ne5 Nxe5 9. Bxe5 e6 10. Be2 Be7 11. O-O O-O 12. c4 cxd4 13. Bxd4 Rac8 14. Rac1 dxc4 15. Nxc4 Qc6 16. Bxf6 Bxf6 17. Bf3 Qc5 18. e4 Bg6 19. Qxb7 Bd4 20. b4 Qg5 21. Qxa6 Qf4 22. Qa3 f5 23. g3 Qh6 24. Bg2 Ra8 25. Qb3 f4 26. Rcd1 Ba7 27. Ne5 fxg3 28. Qxe6+ Kh8 29. Nxg6+ hxg6 30. hxg3 Bxf2+ 31. Rxf2 Qe3 32. Rdf1 Rxf2 33. Rxf2 Rf8 34. Qh3+ Kg8 35. Qe6+ Kh8 36. Qh3+ Kg8 37. Qe6+ Kh8 38. Qh3+ 1/2-1/2

[Event "17th Asian Continental-ch Women 2018"]
[Site "Makati City"]
[Date "2018.12.12"]
[Round "3.17"]
[White "Doan, Thi Van Anh"]
[Black "Secopito, Catherine"]
[Result "0-1"]
[ECO "A00"]
[WhiteElo "1950"]
[BlackElo "2145"]
[PlyCount "108"]
[EventDate "2018.12.07"]
[EventType "swiss"]
[EventCountry "PHI"]
[TimeControl "40/5400+30:1800+30"]

1. e4 d5 2. exd5 Qxd5 3. Nc3 Qd6 4. d4 Nf6 5. Nf3 a6 6. Bd3 Nc6 7. O-O Bg4 8. Ne4 Nxe4 9. Bxe4 O-O-O 10. c3 f6 11. Qa4 Bd7 12. Qc2 e5 13. Be3 exd4 14. Nxd4 Nxd4 15. cxd4 Be6 16. Rac1 c6 17. Bxc6 bxc6 18. Bf4 Qd5 19. Qxc6+ Qxc6 20. Rxc6+ Kd7 21. Rxa6 Bc4 22. Ra7+ Ke6 23. Rd1 g5 24. Bc7 Rd7 25. b3 Bd5 26. Ra6+ Kf7 27. Bg3 Be7 28. f3 Rc8 29. h4 gxh4 30. Bxh4 Rc2 31. Bf2 Rdc7 32. Ra4 Rc1 33. Rxc1 Rxc1+ 34. Kh2 Ke6 35. Ra6+ Rc6 36. Ra7 Rc2 37. Ra6+ Bc6 38. Be3 Bd6+ 39. Kh3 Bd7 40. Bf4 Ke7+ 41. Kg3 Bxf4+ 42. Kxf4 Rxg2 43. a4 Rb2 44. Ra5 Rxb3 45. Rh5 Bc6 46. d5 Rb4+ 47. Ke3 Bxa4 48. Rxh7+ Kd6 49. Rf7 Ke5 50. f4+ Kf5 51. Re7 Rxf4 52. d6 Rb4 53. Ra7 Ke6 54. Ra6 Bd7 0-1

[Event "17th Asian Continental-ch Women 2018"]
[Site "Makati City"]
[Date "2018.12.12"]
[Round "3.18"]
[White "Fronda, Jan Jodilyn"]
[Black "San Diego, Jerlyn Mae"]
[Result "1/2-1/2"]
[ECO "A00"]
[WhiteElo "2139"]
[BlackElo "1932"]
[PlyCount "128"]
[EventDate "2018.12.07"]
[EventType "swiss"]
[EventCountry "PHI"]
[TimeControl "40/5400+30:1800+30"]

1. e4 c5 2. Nf3 g6 3. d4 cxd4 4. Qxd4 Nf6 5. Nc3 Nc6 6. Qa4 Bg7 7. e5 Ng8 8. Bf4 f6 9. e6 d6 10. Nd4 Kf8 11. Nxc6 bxc6 12. Qxc6 Bxe6 13. Ba6 Rb8 14. O-O-O Qb6 15. Qxb6 Rxb6 16. Be2 f5 17. Be3 Rc6 18. Nb5 Bxa2 19. Nxa7 Rc7 20. Nb5 Rc8 21. Na7 Rc7 22. Ba6 Bh6 23. f4 Rxa7 24. Bxa7 Bxf4+ 25. Rd2 Nf6 26. Kd1 Bxd2 27. Kxd2 Bd5 28. Rg1 Kf7 29. Be3 Rb8 30. b3 e5 31. g3 g5 32. Rb1 f4 33. gxf4 gxf4 34. Bg1 Ne4+ 35. Ke1 Rg8 36. Bb6 Rg2 37. Rd1 Bc6 38. Bd3 Rxh2 39. Bxe4 Bxe4 40. Rxd6 Bxc2 41. b4 e4 42. Bd4 f3 43. b5 Ke7 44. Bc5 Re2+ 45. Kf1 Ke8 46. b6 Bd3 47. Kg1 Rg2+ 48. Kh1 Rb2 49. Kg1 Rb5 50. Be3 h5 51. Rh6 Kd7 52. Bd4 Rg5+ 53. Kh1 Ba6 54. Rh7+ Kc6 55. Rc7+ Kd6 56. Ra7 Be2 57. Rf7 Rb5 58. Bf2 h4 59. Rf4 Ke5 60. Rxh4 Rb3 61. Rh5+ Kf4 62. Rh4+ Ke5 63. Rh5+ Kf4 64. Rh4+ Ke5 1/2-1/2

[Event "17th Asian Continental-ch Women 2018"]
[Site "Makati City"]
[Date "2018.12.12"]
[Round "3.19"]
[White "Bernales, Christy Lamiel"]
[Black "Wang, Ying"]
[Result "1-0"]
[ECO "A00"]
[WhiteElo "1996"]
[BlackElo "1324"]
[PlyCount "65"]
[EventDate "2018.12.07"]
[EventType "swiss"]
[EventCountry "PHI"]
[TimeControl "40/5400+30:1800+30"]

1. e4 c5 2. Nc3 e6 3. f4 d5 4. Nf3 Nc6 5. Bb5 a6 6. Bxc6+ bxc6 7. O-O g6 8. d3 Bg7 9. e5 Ne7 10. b3 O-O 11. Ba3 d4 12. Ne4 Nd5 13. Bxc5 Ne3 14. Qe2 Nxf1 15. Rxf1 f5 16. exf6 Rxf6 17. Nxf6+ Bxf6 18. Qe4 Qd5 19. Bxd4 Qxe4 20. dxe4 Be7 21. Rd1 Bd6 22. Be5 Bc5+ 23. Kf1 Be7 24. Bd6 Bf6 25. e5 Bg7 26. Bc5 h6 27. Rd8+ Kh7 28. Nd4 a5 29. c4 Bb7 30. Nxe6 Rxd8 31. Nxd8 Ba8 32. e6 Kg8 33. e7 1-0

[Event "17th Asian Continental-ch Women 2018"]
[Site "Makati City"]
[Date "2018.12.13"]
[Round "4"]
[White "Zhu, Jiner"]
[Black "Guo, Qi"]
[Result "0-1"]
[ECO "B12"]
[WhiteElo "2409"]
[BlackElo "2368"]
[Annotator "NA"]
[PlyCount "48"]
[EventDate "2018.12.07"]
[EventType "swiss"]
[EventCountry "PHI"]
[SourceTitle "playchess.com"]
[Source "ChessBase"]
[SourceQuality "1"]
[TimeControl "40/5400+30:1800+30"]

{[%evp 8,45,13,13,6,5,7,0,10,13,14,14,21,3,10,22,0,-15,0,-29,-27,-50,-51,-96,-105,-81,32767,32767,32767,32767,32767,32767,-129,-583,-604,-585,-601,-606,-646,-609]} 1. e4 {[%emt 0:00:00]} c6 {[%emt 0:00:32]} 2. d4 {[%emt 0:00:00]} d5 {[%emt 0:00:08]} 3. e5 {[%emt 0:00:00]} Bf5 {[%emt 0:00:08]} 4. h4 {[%emt 0:00:00]} h5 {[%emt 0:00:12]} 5. Bd3 {[%emt 0:00:07]} Bxd3 {[%emt 0:00:09]} 6. Qxd3 {[%emt 0:00:04]} e6 {[%emt 0:00:08]} 7. Bg5 {[%emt 0:00:07] B12: Caro-Kann: Advance Variation} Be7 {[%emt 0:00:07]} 8. Nf3 {[%emt 0:00:10]} Nh6 {[%emt 0:00:08]} 9. Nbd2 {[%emt 0:02:08]} (9. Nc3 Nd7 10. Ne2 c5 11. Nf4 cxd4 12. Nxh5 Qa5+ 13. Bd2 Qb6 14. Nxg7+ Kf8 {0-1 (41) Saric,I (2664)-Le,Q (2737) chess.com INT 2018}) 9... Nf5 {[%emt 0:00:18]} 10. c4 {[%emt 0:04:23] LiveBook: 9 Games} dxc4 {[%emt 0:11:51]} 11. Nxc4 {[%emt 0:00:09]} Nd7 {[%emt 0:01:00]} 12. a3 $146 {[%emt 0:08:54]} ({Predecessor:} 12. Ne3 Nxe3 13. Qxe3 Nb6 14. Bxe7 Qxe7 {1-0 (62) Farkas,T (2317)-Kumar,N (2258) Djenovici 2018}) 12... f6 {[%emt 0:06:07]} 13. exf6 {[%emt 0:01:38]} gxf6 {[%emt 0:00:15]} 14. Bf4 {[%emt 0:04:10]} Nb6 $1 {[%emt 0:01:50]} 15. b3 {[%emt 0:08:39]} Rg8 {[%emt 0:06:47]} 16. O-O {[%emt 0:01:47]} Rg4 {[%emt 0:05:41]} 17. Nxb6 {[%emt 0:00:54]} axb6 {[%emt 0:01:05]} 18. g3 {[%emt 0:01:45]} Qd5 {[%emt 0:00:43]} 19. Rfe1 {[%emt 0:06:34]} Kf7 {[%emt 0:10:42]} ({Resist} 19... Rxa3 20. Rxa3 Bxa3 21. Ra1 $15) 20. Qc4 $2 {[%emt 0:07:41]} (20. b4 $17 {is a better chance.}) 20... Qxf3 {[%emt 0:15:50]} 21. Qxe6+ {[%emt 0:20:15]} Kg6 {[%emt 0:00:13]} 22. Qe4 {[%emt 0:01:32]} Qxe4 {[%emt 0:01:23]} 23. Rxe4 $19 {[%emt 0:00:07]} Bd6 {[%emt 0:02:21]} 24. f3 {[%emt 0:02:11]} Nxg3 {[%emt 0:00:24]} 0-1

[Event "17th Asian Continental-ch Women 2018"]
[Site "Makati City"]
[Date "2018.12.13"]
[Round "4"]
[White "Vo, Thi Kim Phung"]
[Black "Padmini, Rout"]
[Result "0-1"]
[ECO "A40"]
[WhiteElo "2352"]
[BlackElo "2345"]
[Annotator "RC"]
[PlyCount "82"]
[EventDate "2018.12.07"]
[EventType "swiss"]
[EventCountry "PHI"]
[SourceTitle "playchess.com"]
[Source "ChessBase"]
[SourceQuality "1"]
[TimeControl "40/5400+30:1800+30"]

1. d4 {[%emt 0:00:00]} e6 {[%emt 0:00:23]} 2. c4 {[%emt 0:00:00]} b6 {[%emt 0:00:10]} 3. Nc3 {[%emt 0:01:02]} Bb7 {[%emt 0:00:29]} 4. e4 {[%emt 0:00:23]} Bb4 {[%emt 0:00:35]} 5. Bd3 {[%emt 0:00:49]} f5 {[%emt 0:00:46]} 6. d5 {[%emt 0:01:40]} fxe4 {[%emt 0:07:44]} 7. Bxe4 {[%emt 0:00:22]} Qh4 {[%emt 0:04:35]} 8. Qd3 {[%emt 0:20:03]} Nf6 {[%emt 0:06:44]} 9. Bf3 {[%emt 0:00:14]} Na6 {[%emt 0:30:52]} 10. dxe6 {[%emt 0:19:54]} Nc5 {[%emt 0:09:07]} 11. exd7+ {[%emt 0:01:17]} Nfxd7 {[%emt 0:06:21]} 12. Qe2+ {[%emt 0:02:54]} Ne4 {[%emt 0:08:21]} 13. Bxe4 {[%emt 0:15:26]} Qxe4 {[%emt 0:01:47]} 14. Bd2 {[%emt 0:01:00]} Qxe2+ {[%emt 0:01:59]} 15. Ngxe2 {[%emt 0:00:09]} Ne5 {[%emt 0:01:45]} 16. O-O {[%emt 0:06:19]} Nxc4 {[%emt 0:00:29]} 17. Bc1 {[%emt 0:02:05]} O-O-O {[%emt 0:00:14]} 18. a3 {[%emt 0:03:06]} Be7 {[%emt 0:00:54]} 19. Bf4 {[%emt 0:02:19]} a6 {[%emt 0:03:46]} 20. b4 {[%emt 0:01:51]} g5 {[%emt 0:03:13]} 21. Bg3 {[%emt 0:00:19]} h5 {[%emt 0:00:38]} 22. h3 {[%emt 0:01:15]} h4 {[%emt 0:00:33]} 23. Bh2 {[%emt 0:00:01]} g4 {[%emt 0:02:28]} 24. hxg4 {[%emt 0:02:34]} h3 {[%emt 0:00:10]} 25. f3 {[%emt 0:02:13]} hxg2 {[%emt 0:00:35]} 26. Kxg2 {[%emt 0:01:28]} Ne3+ {[%emt 0:01:01]} 27. Kg1 {[%emt 0:00:02]} Nxf1 {[%emt 0:00:38]} 28. Rxf1 {[%emt 0:00:01]} Bf6 {[%emt 0:02:42]} 29. Ne4 {[%emt 0:01:40]} Bb2 {[%emt 0:01:02]} 30. N2g3 {[%emt 0:02:21]} Bxa3 {[%emt 0:01:55]} 31. Rb1 {[%emt 0:02:33]} Rd3 {[%emt 0:01:14]} 32. Kg2 {[%emt 0:00:41]} Rd4 {[%emt 0:01:51]} 33. Rb3 {[%emt 0:02:45]} Bxb4 {[%emt 0:00:03]} 34. Nf5 {[%emt 0:00:25]} Rxe4 {[%emt 0:00:26]} 35. fxe4 {[%emt 0:00:26]} Bxe4+ {[%emt 0:00:02]} 36. Kg3 {[%emt 0:00:01]} Be1+ {[%emt 0:00:37]} 37. Kf4 {[%emt 0:00:27]} Bxf5 {[%emt 0:00:05]} 38. gxf5 {[%emt 0:01:27]} Rxh2 {[%emt 0:00:03]} 39. f6 {[%emt 0:00:08]} Bh4 {[%emt 0:00:37]} 40. f7 {[%emt 0:00:00]} Rf2+ {[%emt 0:00:00]} 41. Kg4 {[%emt 0:07:31]} Be7 {[%emt 0:00:23]} 0-1

[Event "17th Asian Continental-ch Women 2018"]
[Site "Makati City"]
[Date "2018.12.13"]
[Round "4.4"]
[White "Aulia, Medina Warda"]
[Black "Citra, Dewi Ardhiani Anast"]
[Result "1/2-1/2"]
[ECO "A00"]
[WhiteElo "2366"]
[BlackElo "2215"]
[PlyCount "30"]
[EventDate "2018.12.07"]
[EventType "swiss"]
[EventCountry "PHI"]
[TimeControl "40/5400+30:1800+30"]

1. e4 e5 2. Nf3 Nc6 3. Bb5 a6 4. Ba4 d6 5. c3 f5 6. exf5 Bxf5 7. O-O Bd3 8. Re1 Be7 9. Re3 e4 10. Ne1 Bg5 11. Rg3 Bh4 12. Re3 Bg5 13. Rg3 Bh4 14. Re3 Bg5 15. Rg3 Bh4 1/2-1/2

[Event "17th Asian Continental-ch Women 2018"]
[Site "Makati City"]
[Date "2018.12.13"]
[Round "4.5"]
[White "Hoang, Thi Bao Tram"]
[Black "Nandhidhaa, P V"]
[Result "1-0"]
[ECO "A00"]
[WhiteElo "2314"]
[BlackElo "2267"]
[PlyCount "135"]
[EventDate "2018.12.07"]
[EventType "swiss"]
[EventCountry "PHI"]
[TimeControl "40/5400+30:1800+30"]

1. d4 Nf6 2. Nf3 d5 3. e3 c5 4. Be2 Nc6 5. O-O cxd4 6. exd4 g6 7. c3 Bg7 8. Bf4 O-O 9. h3 Bf5 10. Nbd2 a6 11. Re1 b5 12. a4 b4 13. Qb3 bxc3 14. bxc3 Ne4 15. Bf1 Qa5 16. Nxe4 Bxe4 17. Nd2 Bf5 18. g4 Bd7 19. Qb2 e5 20. dxe5 Rab8 21. Qc2 d4 22. cxd4 Nxd4 23. Qd3 Ne6 24. Bg3 Rfd8 25. Nc4 Qc5 26. Nd6 Rb4 27. Ne4 Qd4 28. Qxa6 Bxa4 29. Ra3 Bc2 30. Nf6+ Bxf6 31. exf6 Qxf6 32. Qc6 Bb3 33. Ra8 h5 34. Rxd8+ Qxd8 35. Qc3 Rb7 36. gxh5 gxh5 37. Qf3 Bd5 38. Qxh5 Qg5 39. Qd1 Rb3 40. Kh2 Rxg3 41. fxg3 Qf5 42. Qg4+ Qxg4 43. hxg4 Ng5 44. Re8+ Kg7 45. Be2 Be6 46. Rb8 Ne4 47. Rb4 Nf6 48. Kh3 Nd5 49. Rd4 Nb6 50. Kh4 Kf6 51. Bf3 Ke5 52. Re4+ Kf6 53. g5+ Kg6 54. Bh5+ Kg7 55. g6 Bf5 56. Rb4 Nd5 57. Rb5 Be6 58. gxf7 Nf6 59. Rb7 Nd7 60. g4 Nf8 61. g5 Bf5 62. Rb8 Be4 63. Kg4 Bd3 64. g6 Bc2 65. Re8 Bb3 66. Kf5 Bc2+ 67. Kg5 Bxg6 68. Bxg6 1-0